[Event "SUI-ch Bundesturnier TP-1 2022"]
[Site "Payerne"]
[Date "2022.05.29"]
[Round "7.9"]
[White "Toktomushev, Teimur"]
[Black "Lou, Vincent"]
[Result "1/2-1/2"]
[ECO "E18"]
[WhiteElo "1946"]
[BlackElo "2212"]
[Annotator "TA"]
[PlyCount "105"]
[EventDate "2022.05.26"]
[EventType "swiss"]
[EventCountry "SUI"]
[SourceTitle "playchess.com"]
[Source "ChessBase"]
[SourceQuality "1"]
[TimeControl "5400+30"]

{[%evp 16,105,22,17,26,19,24,27,37,43,32,43,47,42,38,34,31,10,10,10,6,-6,-4,0,0,0,0,0,0,-7,0,-20,0,0,0,0,0,0,43,43,60,59,51,31,31,31,35,30,35,35,35,35,81,50,57,50,68,67,66,68,79,77,120,120,128,114,127,127,183,118,132,62,149,106,106,0,119,122,127,70,73,27,27,27,27,27,27,27,27,27,27,7]} 1. d4 {[%emt 0:00:05]} Nf6 {[%emt 0:00:03]} 2. c4 {[%emt 0:00:08]} e6 {[%emt 0:00:04]} 3. Nf3 {[%emt 0:00:08]} b6 {[%emt 0:00:14]} 4. g3 {[%emt 0:00:08]} Bb7 {[%emt 0:00:04]} 5. Bg2 {[%emt 0:00:06]} Be7 {[%emt 0:00:04]} 6. O-O {[%emt 0:00:10]} O-O {[%emt 0:00:05]} 7. Nc3 {[%emt 0:00:14]} Ne4 {[%emt 0:00:06]} 8. Bd2 $1 {[%emt 0:00:09][%mdl 4] outshines the older 8.Qc2.} f5 {[%emt 0:00:34]} 9. Qc2 {[%emt 0:01:11]} Bf6 {[%emt 0:01:03] E18: Queen's Indian: Old Main Line (4 g3 Bb7 5 Bg2 Be7 6 0-0 0-0 7 Nc3).} 10. Ne5 {[%emt 0:06:29][%cal Rc3e4]} Nxc3 {[%emt 0:00:50]} 11. Bxc3 {[%emt 0:00:11] [#]} (11. bxc3 Bxg2 12. Kxg2 Bxe5 13. dxe5 Nc6 $17) 11... Qc8 $146 {[%emt 0:11:33]} ({Predecessor:} 11... Bxg2 12. Kxg2 d5 13. Rfd1 dxc4 14. Bb4 Re8 15. Qxc4 Qd5+ 16. Qxd5 exd5 17. f4 Na6 {½-½ (29) Gelfand,B (2676)-Eljanov,P (2655) Netanya 2019}) 12. d5 {[%emt 0:11:51]} d6 {[%emt 0:02:42]} 13. Nd3 {[%emt 0:01:17]} Bxc3 {[%emt 0:00:38]} 14. Qxc3 {[%emt 0:00:11]} (14. bxc3 e5 $11) 14... e5 {[%emt 0:00:09][%cal Be6e5,Be5e4][%mdl 32] Inhibits Nf4.} 15. f4 {[%emt 0:05:32]} e4 {[%emt 0:01:59]} 16. Nf2 {[%emt 0:14:06][%cal Og3g4,Bd3f2,Bf2d1,Bd1e3,Be3c2,Bc2d4][%mdl 32]} Nd7 {[%emt 0:01:25]} 17. g4 {[%emt 0:05:17]} Nf6 {[%emt 0:02:18]} 18. g5 {[%emt 0:09:44]} Nd7 {[%emt 0:00:38]} 19. Nd1 {[%emt 0:11:12]} a5 {[%emt 0:02:38]} 20. Ne3 {[%emt 0:00:56]} Qe8 {[%emt 0:03:37]} 21. Bh3 {[%emt 0:05:19]} g6 {[%emt 0:01:57]} 22. Bg2 {[%emt 0:02:03]} Qe7 {[%emt 0:01:30][%cal Oh7h6]} 23. Nc2 {[%emt 0:00:26]} Nc5 {[%emt 0:11:58][%cal Ob6b5]} 24. Nd4 {[%emt 0:02:10]} Bc8 {[%emt 0:01:26]} 25. b3 {[%emt 0:01:51][%cal Bb2b3,Bb3b4][%mdl 32]} Bd7 {[%emt 0:00:15]} 26. a3 {[%emt 0:08:07]} Ra7 {[%emt 0:02:40]} 27. b4 {[%emt 0:04:13]} Nb7 {[%emt 0:00:19]} 28. Kf2 {[%emt 0:04:04]} Rfa8 {[%emt 0:02:36]} 29. b5 {[%emt 0:00:23]} Nc5 {[%emt 0:03:09]} 30. Rh1 {[%emt 0:01:07]} h5 {[%emt 0:02:02]} 31. gxh6 {[%emt 0:02:59]} Qh4+ {[%emt 0:00:35]} 32. Qg3 {[%emt 0:00:12] Chess con chili. Active counter play!} Qxh6 {[%emt 0:00:14]} 33. h4 {[%emt 0:00:46]} Qh5 {[%emt 0:00:35]} (33... Kf7 $1 $14) 34. Ke1 {[%emt 0:02:19]} Kf7 {[%emt 0:02:28]} 35. e3 {[%emt 0:00:33]} Rg8 {[%emt 0:02:25]} 36. Bf1 {[%emt 0:00:08]} Raa8 {[%emt 0:00:53]} 37. Be2 {[%emt 0:00:08]} Qh6 {[%emt 0:00:29]} 38. Kf2 {[%emt 0:00:44]} Rg7 {[%emt 0:02:09]} 39. Rag1 $1 {[%emt 0:00:18]} Rag8 {[%emt 0:02:40]} 40. Qh3 {[%emt 0:00:37]} Ke8 {[%emt 0:03:49] [#]} 41. Rg5 $1 {[%emt 0:00:22]} Kf8 {[%emt 0:08:19]} (41... Nb7 $16 42. Rhg1 Kf8) 42. Qg3 {[%emt 0:00:31]} (42. h5 $18) 42... Nb7 {[%emt 0:01:41]} 43. h5 {[%emt 0:02:40]} ({White should try} 43. Rg1 $16) 43... Nd8 {[%emt 0:00:37]} ({Better is} 43... gxh5 $1 $14 44. Rhxh5 Rxg5 45. fxg5 (45. Rxh6 $2 Rxg3 46. Bf1 Nc5 $19) 45... Qg6) 44. Rh2 {[%emt 0:00:32] And now hxg6 would win.} gxh5 {[%emt 0:03:02][%cal Rg7g5]} 45. Rhxh5 {[%emt 0:00:11]} (45. Rxf5+ $16 Bxf5 46. Nxf5) 45... Qf6 {[%emt 0:00:30] [#]} (45... Rxg5 $1 $11 {remains equal.} 46. Rxg5 (46. Rxh6 $2 {loses.} Rxg3 47. Bf1 Nb7 $19) (46. fxg5 Qg6 $11) 46... Rxg5 47. fxg5 (47. Qxg5 Qxg5 48. fxg5 Nf7 $11) 47... Qg6) 46. Rxg7 $1 $16 {[%emt 0:01:03]} Rxg7 {[%emt 0:00:09]} 47. Qh3 {[%emt 0:00:22]} (47. Rh8+ $16 Ke7 48. Qh2) 47... Nf7 $14 {[%emt 0:01:59]} 48. Rh7 {[%emt 0:00:44]} (48. Rh4 $16) 48... Rxh7 $1 $11 {[%emt 0:01:03] White has an edge.} 49. Qxh7 {[%emt 0:00:05] Bh5 is the strong threat.} Qh6 {[%emt 0:00:17]} 50. Qxh6+ {[%emt 0:00:07]} Nxh6 {[%emt 0:00:01]} 51. Kg3 {[%emt 0:00:12] Black must now prevent Kh4.} Kg7 {[%emt 0:00:30]} 52. Kh4 {[%emt 0:00:19] Hoping for Kh5.} Kf6 {[%emt 0:00:52]} 53. Kh5 {[%emt 0:00:12] Black defended with fortune.  Weighted Error Value: White=0.12 (very precise) /Black=0.14 (very precise)} 1/2-1/2

[Event "SUI-ch Bundesturnier TP-1 2022"]
[Site "Payerne"]
[Date "2022.05.29"]
[Round "7.10"]
[White "Hagner, Bennet"]
[Black "Schlegel, Igor"]
[Result "1-0"]
[ECO "B94"]
[WhiteElo "2186"]
[BlackElo "2183"]
[Annotator "TA"]
[PlyCount "55"]
[EventDate "2022.05.26"]
[EventType "swiss"]
[EventCountry "SUI"]
[SourceTitle "playchess.com"]
[Source "ChessBase"]
[SourceQuality "1"]
[TimeControl "5400+30"]

{[%evp 12,55,8,0,19,-29,0,0,5,15,24,0,1,0,3,9,0,4,13,15,22,8,31,20,59,59,59,47,50,56,40,45,41,25,422,410,537,534,778,758,2037,812,806,799,766,755]} 1. e4 {[%emt 0:00:02]} c5 {[%emt 0:00:02]} 2. Nf3 {[%emt 0:00:05]} d6 {[%emt 0:00:05]} 3. d4 {[%emt 0:00:03]} cxd4 {[%emt 0:00:02]} 4. Nxd4 {[%emt 0:00:08]} Nf6 {[%emt 0:00:03]} 5. Nc3 {[%emt 0:00:08]} a6 {[%emt 0:00:02]} 6. Bg5 {[%emt 0:00:06]} Nbd7 {[%emt 0:00:04]} 7. Bc4 {[%emt 0:00:06][%cal Bf1c4,Bc4d5,Bd5b3][%mdl 32] 7.Qe2 is setting a new trend.} Qb6 {[%emt 0:00:07] B94: Sicilian Najdorf: 6 Bg5 Nbd7.} 8. O-O {[%emt 0:00:07]} (8. Bb3 $142) 8... Qc5 {[%emt 0:00:50]} 9. Bd5 {[%emt 0:00:08]} e6 {[%emt 0:00:10] [#] The position is equal.} 10. Re1 $1 {[%emt 0:00:06][%cal Og5e3,Bf1e1,Be1e3,Be3f3][%mdl 32]} Ne5 {[%emt 0:00:34]} ({Don't play} 10... exd5 11. Na4 Qa5 12. exd5+ Ne5 13. f4 Qxa4 14. fxe5 dxe5 15. Rxe5+ Kd8 16. Re4 $17) 11. Bb3 {[%emt 0:00:16]} (11. Na4 $5 {[%cal Ra4c5]} Qc7 12. Bb3 $11) 11... Be7 {[%emt 0:08:30]} 12. Be3 {[%emt 0:00:15]} Qc7 {[%emt 0:00:20]} 13. f4 {[%emt 0:00:15]} Neg4 {[%emt 0:07:23] [#]} 14. Kh1 $146 {[%emt 0:00:10] White wants to play Bg1.} ({Predecessor:} 14. Bc1 h5 15. h3 Nh6 16. f5 e5 17. Nf3 Bd7 18. Bg5 Bc6 19. Qd2 O-O-O 20. Bxf6 Bxf6 {1-0 (32) Bilych,O (2342)-Bachmann,A (2588) Chess.com INT 2022}) 14... Nxe3 {[%emt 0:01:04]} 15. Rxe3 {[%emt 0:00:02]} O-O {[%emt 0:23:35]} 16. f5 {[%emt 0:09:45]} e5 {[%emt 0:02:38] And now ...Qc5 would win.} 17. Nde2 {[%emt 0:11:17]} Qc5 {[%emt 0:21:38]} 18. Rf3 {[%emt 0:01:22]} Bd8 {[%emt 0:00:06]} 19. Qd3 {[%emt 0:04:54]} b5 {[%emt 0:06:13]} 20. Nd5 {[%emt 0:09:44]} Bb7 {[%emt 0:02:40]} 21. Nxf6+ {[%emt 0:03:01]} Bxf6 {[%emt 0:00:01]} 22. Ng3 {[%emt 0:03:02]} Bh4 $2 {[%emt 0:08:25][%mdl 8192] [#] This move loses the game for Black.} (22... a5 $11) 23. f6 $1 $18 {[%emt 0:20:42] fxg7 is the strong threat.} Bxf6 {[%emt 0:00:38] [#]} 24. Rxf6 {[%emt 0:01:16][%cal Oa1f1][%mdl 512] Hoping for Raf1! White is clearly winning.} gxf6 {[%emt 0:00:05] [#]} (24... Kh8 25. Rxd6) 25. Qf3 $1 {[%emt 0:01:03]} f5 {[%emt 0:06:29]} 26. Nh5 {[%emt 0:02:05]} (26. Nxf5 $142 Kh8 27. Qg4) 26... Kh8 {[%emt 0:00:20]} 27. Qxf5 {[%emt 0:00:35] Threatening mate with Qf6+.} f6 {[%emt 0:00:08]} 28. Qd7 {[%emt 0:01:07] Weighted Error Value: White=0.09 (flawless) /Black=0.61} 1-0